Cogmind - Beta 13 @@@ ROGUE MODE // 2024.07.30 @ 16:49:12 Player: Sgt. SmokeWeed Result: Destroyed by G-73 Enforcer with Phase Gun Performance ------------- Evolutions (6) 3000 Regions Visited (11) 2200 Robots Destroyed (117) 585 Value Destroyed (4150) 4150 Prototype IDs (2) 40 Alien Tech Used (0) 0 Bonus (240) 240 TOTAL SCORE: 10215 Bonus ------- High Alert Combat Kills 233 Follower Combat Kills 7 Cogmind --------- Core Integrity 0/1150 Matter 300/300 Energy 73/100 System Corruption 42% Temperature Cool (9) Movement Core (150) Ox2 Location -4/Factory Parts ------- > --- POWER (1) -------- (None) > --- PROPULSION (2) --- (None) > --- UTILITY (14) ----- Advanced Actuator Array > --- WEAPON (2) ------- (None) > --- INVENTORY (5) ---- Great Maul Peak State ------------ > --- POWER ------------ Neutrino Core > --- PROPULSION ------- Armored Treads Armored Treads > --- UTILITY ---------- Improved Melee Analysis Suite Improved Melee Analysis Suite Improved Melee Analysis Suite Advanced Melee Analysis Suite Microactuators Microactuators Heavy Armor Plating Heavy Armor Plating Improved Force Field Hacking Suite System Shield > --- WEAPON ----------- Power Sword > --- INVENTORY -------- Great Maul Great Maul Great Maul [Rating: 67] Favorites ----------- Power Ion Engine Engine Ion Engine Power Core Nuclear Core Propulsion Armored Treads Treads Armored Treads Leg Flexi-carbon Leg Utility Improved Melee Analysis Suite Device Microactuators Processor Improved Melee Analysis Suite Hackware System Shield Protection Hardened Medium Armor Plating Weapon Heavy Mace Energy Gun EM Pulse Gun Ballistic Gun Assault Rifle Launcher Heavy Missile Launcher Impact Weapon Heavy Mace Slashing Weapon Great Axe Build | -11 -10 -10 -10 -9 -8 -7 -6 -5 -4 -4 -4 ------- Run | Yrd Mat Min Exi Min Mat Fac Fac Fac Fac Was Fac Slots Evolved 12 | . . . . . 4 2 2 2 2 . . Power . | . . . . . . . . . . . . Propulsion . | . . . . . . . . . . . . Utility 12 | . . . . . 4 2 2 2 2 . . Weapon . | . . . . . . . . . . . . Parts Attached 115 | 5 1 4 1 2 22 56 8 3 1 3 9 Power 23 | 1 . 2 . 1 8 9 1 1 . . . Engine 17 | 1 . 2 . . 7 6 1 . . . . Core 6 | . . . . 1 1 3 . 1 . . . Reactor . | . . . . . . . . . . . . Propulsion 25 | 2 . . . 1 8 11 . . . 2 1 Treads 24 | 2 . . . 1 8 11 . . . 2 . Leg 1 | . . . . . . . . . . . 1 Wheel . | . . . . . . . . . . . . Hover . | . . . . . . . . . . . . Flight . | . . . . . . . . . . . . Utility 41 | . . . 1 . 3 25 6 2 1 1 2 Device 15 | . . . . . 2 8 1 1 1 1 1 Storage . | . . . . . . . . . . . . Processor 9 | . . . . . . 7 1 1 . . . Hackware 4 | . . . 1 . 1 2 . . . . . Protection 13 | . . . . . . 8 4 . . . 1 Artifact . | . . . . . . . . . . . . Weapon 26 | 2 1 2 . . 3 11 1 . . . 6 Energy Gun 1 | 1 . . . . . . . . . . . Energy Cannon . | . . . . . . . . . . . . Ballistic Gun 2 | 1 . 1 . . . . . . . . . Ballistic Cannon . | . . . . . . . . . . . . Launcher 7 | . 1 . . . 1 5 . . . . . Special Weapon . | . . . . . . . . . . . . Impact Weapon 9 | . . 1 . . 2 1 . . . . 5 Slashing Weapon 7 | . . . . . . 5 1 . . . 1 Piercing Weapon . | . . . . . . . . . . . . Special Melee Weapon . | . . . . . . . . . . . . Unidentified Prototypes 2 | . . . . . . 2 . . . . . Corrupted Parts 2 | . . 1 . . . . . . . . 1 System Corruption 17 | . . 7 . . . . . . . . 10 Parts Lost 51 | . 1 1 . 2 7 24 1 . 1 3 11 Power 10 | . . 1 . 1 4 3 . . . 1 . Propulsion 9 | . . . . 1 2 4 . . . . 2 Utility 23 | . . . . . . 13 . . 1 2 7 Weapon 9 | . 1 . . . 1 4 1 . . . 2 Highest Loss Streak 9 | . 1 1 . 2 3 7 1 . 1 2 9 To Critical Strikes 1 | . . . . 1 . . . . . . . Average Slot Usage (%) 74 | . 67 67 80 81 57 82 85 82 75 47 18 Engine 5 | . 14 13 14 8 6 2 6 3 . . . Core 1 | . . . . 3 1 2 . 1 5 2 . Treads 15 | . 28 28 28 26 16 14 13 11 10 5 . Device 9 | . . . . . 5 14 7 11 12 7 2 Processor 10 | . . . . . . 14 18 23 21 21 6 Hackware 7 | . . . 9 14 11 6 13 11 10 8 1 Protection 7 | . . . . . . 10 12 11 10 . 1 Ballistic Gun 2 | . 14 21 14 14 . . . . . . . Launcher 4 | . 3 . . . 6 6 5 . . . . Impact Weapon 3 | . . 3 14 14 8 2 . . . . 3 Slashing Weapon 3 | . . . . . . 4 6 5 5 . 1 Naked Turns 19 | . . . . . . . . . . . 19 Heaviest Build 63 | 7 8 10 10 10 19 50 57 51 63 48 13 Greatest Support 75 | 40 40 40 40 40 40 56 40 40 40 75 75 Greatest Overweight (x) 4 | 2 . . . . 4 2 1 1 1 1 4 Average Overweight (x) . | . . . . . . . 1 1 1 . . Largest Inventory Capacity 5 | 5 5 5 5 5 5 5 5 5 5 5 5 Average Capacity 5 | 5 5 5 5 5 5 5 5 5 5 5 5 Most Carried 5 | . 1 3 2 2 4 5 5 4 3 4 3 Average Carried 3 | . . 1 2 1 2 3 4 3 3 3 1 Final Capacity 5 | 5 5 5 5 5 5 5 5 5 5 5 5 Final Carried 5 | . 1 2 2 1 3 5 5 3 3 4 1 Class Distribution -------------------- 61% | Mutant 35% | Hacker-Mutant Dominant Class ---------------- Mutant | -10/Materials Mutant | -10/Mines Mutant | -10/Exiles Mutant | -9/Mines Mutant | -8/Materials Mutant | -7/Factory Hacker-Mutant | -6/Factory Hacker-Mutant | -5/Factory Hacker-Mutant | -4/Factory Mutant | -4/Waste Mutant | -4/Factory Resources | -11 -10 -10 -10 -9 -8 -7 -6 -5 -4 -4 -4 ----------- Run | Yrd Mat Min Exi Min Mat Fac Fac Fac Fac Was Fac Matter Collected 2149 | 250 71 81 . 98 146 1284 70 . 40 . 109 Remotely . | . . . . . . . . . . . . Salvage Created 4118 | . 228 51 . 60 539 2180 520 . 130 . 410 Parts 192 | . 17 6 . . 20 121 20 . 3 . 5 Haulers Intercepted 4 | . . . . . 1 3 . . . . . Recyclers Shooed 1 | . . . . . . . . . . . 1 Parts Field Recycled . | . . . . . . . . . . . . Retrieved Matter . | . . . . . . . . . . . . Parts Self-Destructed . | . . . . . . . . . . . . Prevented . | . . . . . . . . . . . . Kills | -11 -10 -10 -10 -9 -8 -7 -6 -5 -4 -4 -4 ------- Run | Yrd Mat Min Exi Min Mat Fac Fac Fac Fac Was Fac Combat Hostiles Destroyed 88 | . 7 3 . 5 12 45 8 . 2 . 6 Melee 44 | . . . . 4 5 25 8 . 2 . . Guns 10 | . 7 3 . . . . . . . . . AOE 22 | . . . . . 3 19 . . . . . Classes Destroyed 17 | . 3 . . 1 6 7 . . . . . Worker 10 | . . . . . 2 8 . . . . . Builder 9 | . . . . . 2 6 . . . . 1 Tunneler 2 | . . . . . . 2 . . . . . Hauler 4 | . . . . . 1 3 . . . . . Recycler 1 | . . . . . . 1 . . . . . Mechanic 1 | . . . . . 1 . . . . . . Operator 1 | . . . . . . 1 . . . . . Watcher 6 | . 1 . . . 2 2 1 . . . . Swarmer 17 | . 3 3 . . 3 8 . . . . . Grunt 41 | . 4 . . . 5 18 7 . 2 . 5 Brawler 2 | . . . . . . 2 . . . . . Duelist 1 | . . . . . . 1 . . . . . Sentry 8 | . . . . . 2 5 . . . . 1 Specialist 2 | . . . . . . 2 . . . . . Hunter 4 | . . . . . 2 2 . . . . . Programmer 8 | . . . . . . 7 1 . . . . Assembled 5 | . . . . 5 . . . . . . . Best Kill Streak 6 | . 5 3 . 5 4 6 4 . 2 . 2 Combat Bots Only 6 | . 5 3 . 5 4 6 4 . 2 . 2 Max Kills in Single Turn 3 | . 1 1 . 1 2 3 1 . 1 . 1 Gunslinging . | . . . . . . . . . . . . Exploded 2 | . . . . . 1 2 . . . . . Melee 1 | . . . . 1 1 1 1 . 1 . . Uniques/NPCs Destroyed . | . . . . . . . . . . . . Combat | -11 -10 -10 -10 -9 -8 -7 -6 -5 -4 -4 -4 -------- Run | Yrd Mat Min Exi Min Mat Fac Fac Fac Fac Was Fac Hostile Shots Fired 793 | . 42 20 . 20 126 420 56 . 14 5 90 Missed 222 | . 9 3 . 2 36 137 13 . 7 . 15 Damage Taken 9143 | . 290 139 . 306 1389 4176 764 . 120 220 1739 Core 2421 | . 43 34 . 124 358 655 52 . . 186 969 Absorbed by Shields 9 | . . . . . . . . . 9 . . Regen/Repaired (Parts) 267 | . . . . . 267 . . . . . . Core Remaining (%) 58 | 100 . . . 19 34 6 93 100 . . . Volleys Fired 82 | . 30 5 . . 17 30 . . . . . Largest 2 | . 2 2 . . 1 1 . . . . . Hottest 60 | . 60 40 . . 30 39 . . . . . Shots Fired 96 | . 35 10 . . 17 34 . . . . . Gun 44 | . 34 10 . . . . . . . . . Cannon . | . . . . . . . . . . . . Launcher 52 | . 1 . . . 17 34 . . . . . Special . | . . . . . . . . . . . . Kinetic 40 | . 30 10 . . . . . . . . . Thermal . | . . . . . . . . . . . . Explosive 52 | . 1 . . . 17 34 . . . . . Electromagnetic 4 | . 4 . . . . . . . . . . Robot Hit Streak 9 | . 3 3 . . 5 9 . . . . . Robot Miss Streak 4 | . 3 4 . . . 3 . . . . . Penetration Max . | . . . . . . . . . . . . Secondary Targets 1 | . . 1 . . . . . . . . . Max Gunslinging Chain 1 | . . 1 . . . . . . . . . Shots Hit Robots 239 | . 18 4 . 9 32 102 35 . 9 . 30 Core Hits 136 | . 11 3 . 3 17 83 13 . 4 . 2 Critical Kills 3 | . . . . 1 1 1 . . . . . Critical Parts Destroyed 13 | . 1 . . . 3 4 . . . . 5 Critical Strikes 33 | . 1 . . 1 5 11 4 . 3 . 8 Destroy 1 | . 1 . . . . . . . . . . Smash 16 | . . . . 1 5 5 . . . . 5 Sever 16 | . . . . . . 6 4 . 3 . 3 Melee Attacks 254 | . . . . 15 43 111 37 . 9 . 39 Impact 110 | . . . . 15 43 21 . . . . 31 Slashing 144 | . . . . . . 90 37 . 9 . 8 Piercing . | . . . . . . . . . . . . Sneak Attacks 25 | . . . . . 6 17 . . . . 2 Combat Hostiles . | . . . . . . . . . . . . Follow-up Attacks . | . . . . . . . . . . . . Damage Inflicted 13545 | . 279 48 . 417 2054 7477 1545 . 414 . 1311 Guns 324 | . 278 46 . . . . . . . . . Cannons . | . . . . . . . . . . . . Explosions 3369 | . . . . . 580 2789 . . . . . Melee 9849 | . . . . 417 1474 4688 1545 . 414 . 1311 Ramming 3 | . 1 2 . . . . . . . . . Kinetic 287 | . 241 46 . . . . . . . . . Thermal . | . . . . . . . . . . . . Explosive 3317 | . . . . . 580 2737 . . . . . Electromagnetic 89 | . 37 . . . . 52 . . . . . Impact 4071 | . . . . 417 1474 1199 . . . . 981 Slashing 5778 | . . . . . . 3489 1545 . 414 . 330 Piercing . | . . . . . . . . . . . . Highest Corruption 42 | . . 7 7 7 . 10 1 . . 16 42 Average Corruption 8 | . . 7 7 7 . 7 1 . . 7 33 Corruption Purged 5 | . . . . . . 5 . . . . . Corruption Blocked . | . . . . . . . . . . . . Effects 163 | . . 3 19 5 . 113 2 . . 4 17 Message Errors 40 | . . 1 5 1 . 29 1 . . 1 2 Matter Fused 41 | . . . 7 1 . 28 . . . 1 4 Heat Flow Errors 16 | . . . . 2 . 11 . . . . 3 Energy Discharges 18 | . . 2 3 . . 12 . . . . 1 Parts Rejected 6 | . . . . . . 1 1 . . 2 2 Parts Fused 3 | . . . . . . 3 . . . . . Data Loss (minor) 22 | . . . 2 1 . 14 . . . . 5 Data Loss (major) 8 | . . . . . . 8 . . . . . Misfires 4 | . . . . . . 4 . . . . . Alerts 5 | . . . 2 . . 3 . . . . . Overload Shots . | . . . . . . . . . . . . Overflow Damage 1896 | . . . . 39 504 948 100 . . . 305 Projectiles . | . . . . . . . . . . . . Explosions 108 | . . . . . . 108 . . . . . Melee 1788 | . . . . 39 504 840 100 . . . 305 Knockbacks 19 | . . . . . 7 4 . . . . 8 Impact 18 | . . . . . 6 4 . . . . 8 Kinetic . | . . . . . . . . . . . . Secondary 1 | . . . . . 1 . . . . . . Self-Inflicted Damage 193 | . . . . . 31 162 . . . . . Shots 7 | . . . . . 2 5 . . . . . Rammed 2 | . 1 1 . . . . . . . . . Targets Rammed 2 | . 1 1 . . . . . . . . . Kicked . | . . . . . . . . . . . . Crushed . | . . . . . . . . . . . . Highest Temperature 253 | . 18 . . 166 16 253 3 . . . 207 Average Temperature 80 | . 9 . . 68 7 89 3 . . . 98 Received Heat Transfer 1950 | . 84 . . 80 405 801 246 . 42 . 292 Siege Activations . | . . . . . . . . . . . . Robots Corrupted . | . . . . . . . . . . . . Combat Hostiles . | . . . . . . . . . . . . Parts Fried 32 | . . . . . 10 9 . . . . 13 Impact Corruptions 47 | . . . . 2 17 15 . . . . 13 Robots Melted . | . . . . . . . . . . . . Combat Hostiles . | . . . . . . . . . . . . Parts Melted . | . . . . . . . . . . . . Heat Transferred . | . . . . . . . . . . . . Parts Sabotaged . | . . . . . . . . . . . . Parts Stolen . | . . . . . . . . . . . . Parts Stripped . | . . . . . . . . . . . . Power Chain Reactions . | . . . . . . . . . . . . Alert | -11 -10 -10 -10 -9 -8 -7 -6 -5 -4 -4 -4 ------- Run | Yrd Mat Min Exi Min Mat Fac Fac Fac Fac Was Fac Peak Influence 888 | . 179 129 . 15 291 888 442 177 156 51 272 Initial 427 | . . 69 . . . 77 427 177 86 51 14 Average 244 | . 63 91 . . 130 316 338 177 130 34 117 Maximum Alert Level 3 | . . . . . 1 3 2 . . . 1 Low Security (%) 50 | 100 100 100 . 100 84 34 4 100 100 100 73 Level 1 29 | . . . . . 15 34 62 . . . 26 Level 2 12 | . . . . . . 14 33 . . . . Level 3 7 | . . . . . . 15 . . . . . Level 4 . | . . . . . . . . . . . . Level 5 . | . . . . . . . . . . . . High Security . | . . . . . . . . . . . . Max Security . | . . . . . . . . . . . . Squads Dispatched 24 | . 1 . . . 2 14 3 . 1 . 3 Investigation 4 | . 1 . . . 1 1 1 . . . . Extermination 9 | . . . . . . 7 1 . 1 . . Reinforcement 10 | . . . . . 1 5 1 . . . 3 Assault 1 | . . . . . . 1 . . . . . Garrison . | . . . . . . . . . . . . Intercept . | . . . . . . . . . . . . Searches Triggered . | . . . . . . . . . . . . Construction Impeded 2 | . . . . . 1 1 . . . . . Haulers Reinforced 1 | . . . . . . 1 . . . . . Active Scanning Responses . | . . . . . . . . . . . . Cargo Convoy Interrupts . | . . . . . . . . . . . . Stealth | -11 -10 -10 -10 -9 -8 -7 -6 -5 -4 -4 -4 --------- Run | Yrd Mat Min Exi Min Mat Fac Fac Fac Fac Was Fac Distress Signals 2 | . 1 . . . 1 . . . . . . Communications Jammed . | . . . . . . . . . . . . Distress Signals . | . . . . . . . . . . . . Times Spotted 153 | . 8 3 . 6 27 60 15 . 5 6 23 Peak Tracking Total 8 | . 5 3 . 5 7 8 4 . 3 6 5 Tactical Retreats 13 | . . . . 1 3 1 1 . 1 . 6 Traps | -11 -10 -10 -10 -9 -8 -7 -6 -5 -4 -4 -4 ------- Run | Yrd Mat Min Exi Min Mat Fac Fac Fac Fac Was Fac Traps Triggered 2 | . . . . . . 1 . . 1 . . Indirectly . | . . . . . . . . . . . . Trap Hack Attempts . | . . . . . . . . . . . . Triggered . | . . . . . . . . . . . . Disarmed . | . . . . . . . . . . . . Reprogrammed . | . . . . . . . . . . . . Reused . | . . . . . . . . . . . . Traps Extracted . | . . . . . . . . . . . . Installed . | . . . . . . . . . . . . Triggered 2 | . . . . . 2 . . . . . . Machines | -11 -10 -10 -10 -9 -8 -7 -6 -5 -4 -4 -4 ---------- Run | Yrd Mat Min Exi Min Mat Fac Fac Fac Fac Was Fac Machines Disabled 14 | . 1 . . . . 13 . . . . . Max in Single Turn 4 | . 1 . . . . 4 . . . . . Machines Repaired . | . . . . . . . . . . . . Machines Dismantled . | . . . . . . . . . . . . Machines Sabotaged . | . . . . . . . . . . . . Overloaded Fab Kills . | . . . . . . . . . . . . Hacking | -11 -10 -10 -10 -9 -8 -7 -6 -5 -4 -4 -4 --------- Run | Yrd Mat Min Exi Min Mat Fac Fac Fac Fac Was Fac Machines Accessed 18 | . 1 1 . . 4 7 4 . 1 . . Terminals 9 | . 1 . . . 2 2 4 . . . . Fabricators 2 | . . . . . . 2 . . . . . Repair Stations 5 | . . . . . 2 2 . . 1 . . Recycling Units . | . . . . . . . . . . . . Scanalyzers . | . . . . . . . . . . . . Garrison Access 1 | . . . . . . 1 . . . . . Total Hacks 38 | . 3 1 . . 9 15 8 . 2 . . Successful 13 | . . 1 . . 8 3 1 . . . . Failed 25 | . 3 . . . 1 12 7 . 2 . . Catastrophic 6 | . 1 . . . . 2 3 . . . . Database Lockouts . | . . . . . . . . . . . . Manual 12 | . . . . . 1 4 7 . . . . Terminals 17 | . 3 . . . 2 4 8 . . . . Fabricators 3 | . . . . . . 3 . . . . . Repair Stations 15 | . . . . . 7 6 . . 2 . . Recycling Units . | . . . . . . . . . . . . Scanalyzers . | . . . . . . . . . . . . Garrison Access 2 | . . . . . . 2 . . . . . Terminal Hacks 4 | . . 1 . . 2 . 1 . . . . Record 1 | . . . . . . . 1 . . . . Open Door 1 | . . 1 . . . . . . . . . Branch Access Points 1 | . . . . . 1 . . . . . . Hauler Manifests 1 | . . . . . 1 . . . . . . Fabricator Hacks 1 | . . . . . . 1 . . . . . Network Status 1 | . . . . . . 1 . . . . . Repair Station Hacks 8 | . . . . . 6 2 . . . . . Scan Component 5 | . . . . . 3 2 . . . . . Repair 3 | . . . . . 3 . . . . . . Recycling Unit Hacks . | . . . . . . . . . . . . Scanalyzer . | . . . . . . . . . . . . Garrison Access Hacks . | . . . . . . . . . . . . Unauthorized Hacks . | . . . . . . . . . . . . Terminals . | . . . . . . . . . . . . Fabricators . | . . . . . . . . . . . . Repair Stations . | . . . . . . . . . . . . Recycling Units . | . . . . . . . . . . . . Scanalyzers . | . . . . . . . . . . . . Garrison Access . | . . . . . . . . . . . . Data Cores Recovered . | . . . . . . . . . . . . Used . | . . . . . . . . . . . . Hacking Detections 13 | . 1 . . . 1 6 4 . 1 . . Full Trace Events 3 | . 1 . . . . 1 1 . . . . Feedback Events . | . . . . . . . . . . . . Feedback Blocked . | . . . . . . . . . . . . Robot Schematics Acquired . | . . . . . . . . . . . . Robots Built . | . . . . . . . . . . . . Authchips . | . . . . . . . . . . . . Time . | . . . . . . . . . . . . Total Robot Build Rating . | . . . . . . . . . . . . Part Schematics Acquired . | . . . . . . . . . . . . Parts Built . | . . . . . . . . . . . . Authchips . | . . . . . . . . . . . . Time . | . . . . . . . . . . . . Total Part Build Rating . | . . . . . . . . . . . . Parts Repaired 3 | . . . . . 3 . . . . . . Time 90 | . . . . . 90 . . . . . . Parts Recycled . | . . . . . . . . . . . . Recycled Matter . | . . . . . . . . . . . . Retrieved Matter . | . . . . . . . . . . . . Retrieved Components . | . . . . . . . . . . . . Parts Scanalyzed . | . . . . . . . . . . . . Part Schematics Acquired . | . . . . . . . . . . . . Parts Damaged . | . . . . . . . . . . . . Bothacking | -11 -10 -10 -10 -9 -8 -7 -6 -5 -4 -4 -4 ------------ Run | Yrd Mat Min Exi Min Mat Fac Fac Fac Fac Was Fac Used RIF Installer . | . . . . . . . . . . . . Robots Hacked . | . . . . . . . . . . . . Non-combat . | . . . . . . . . . . . . Combat . | . . . . . . . . . . . . Robot Hacks Applied . | . . . . . . . . . . . . Relay Couplers Released 4 | . . . . . . 4 . . . . . Programmers 4 | . . . . . . 4 . . . . . Fabnet Peak Effective % . | . . . . . . . . . . . . Robots Rewired 2 | . . . 2 . . . . . . . . Allies Hacked . | . . . . . . . . . . . . Hacks Repelled . | . . . . . . . . . . . . Allies | -11 -10 -10 -10 -9 -8 -7 -6 -5 -4 -4 -4 -------- Run | Yrd Mat Min Exi Min Mat Fac Fac Fac Fac Was Fac Total Allies 5 | . . . 2 3 . . . . . . . Largest Group 3 | . . . 2 3 3 . . . . . . Highest-Rated Group 40 | . . . 29 40 40 . . . . . . Highest-Rated Ally 21 | . . . 21 21 16 . . . . . . Total Orders . | . . . . . . . . . . . . Ally Attacks 7 | . . . . 2 5 . . . . . . Total Damage 42 | . . . . . 42 . . . . . . Kills 1 | . . . . . 1 . . . . . . Allies Corrupted . | . . . . . . . . . . . . Allies Melted . | . . . . . . . . . . . . Intel | -11 -10 -10 -10 -9 -8 -7 -6 -5 -4 -4 -4 ------- Run | Yrd Mat Min Exi Min Mat Fac Fac Fac Fac Was Fac Robot Analysis Total . | . . . . . . . . . . . . Derelict Logs Recovered 2 | . . 1 . 1 . . . . . . . Drone Launches . | . . . . . . . . . . . . Drone Recoveries . | . . . . . . . . . . . . Exploration | -11 -10 -10 -10 -9 -8 -7 -6 -5 -4 -4 -4 ------------- Run | Yrd Mat Min Exi Min Mat Fac Fac Fac Fac Was Fac Turns Passed 8641 | 54 264 454 562 180 986 4019 1192 137 314 125 354 Spaces Moved 4145 | 37 120 269 335 83 422 2031 440 54 114 77 163 Core 134 | 14 . . . . 8 4 . . . . 108 Treads 3973 | 23 120 269 335 83 414 2027 440 54 114 77 17 Legs 38 | . . . . . . . . . . . 38 Wheels . | . . . . . . . . . . . . Hover . | . . . . . . . . . . . . Flight . | . . . . . . . . . . . . Fastest Speed 50 | 50 160 160 160 160 50 150 250 250 250 145 50 Average Speed 174 | 129 160 160 160 160 158 168 250 250 250 155 114 Slowest Speed 250 | 160 160 160 160 160 250 250 250 250 250 250 250 Overloaded Moves . | . . . . . . . . . . . . Propulsion Burnouts . | . . . . . . . . . . . . Robots Hopped . | . . . . . . . . . . . . Cave-ins Triggered 2 | . . . . . . 2 . . . . . Exploration Rate (%) 30 | 4 19 63 76 26 28 51 11 2 2 79 4 Regions Visited 11 Branch Regions 3 Pre-discovered Areas . | . . . . . . . . . . . . Known Exits Taken 1 | . . . . . 1 . . . . . . Unknown Exits Taken 8 | 1 1 1 1 1 . 1 1 1 . . . Scrap Searched 2 | . . 2 . . . . . . . . . Spaces Dug 11 | . . . . . 1 9 . . . . 1 Terrain Destroyed 318 | . 7 . . . 116 194 . . . . 1 Melee 11 | . . . . . 1 9 . . . . 1 Projectile . | . . . . . . . . . . . . AOE 307 | . 7 . . . 115 185 . . . . . Terrain Rammed . | . . . . . . . . . . . . Walls Destroyed . | . . . . . . . . . . . . Machines Disabled . | . . . . . . . . . . . . Actions | -11 -10 -10 -10 -9 -8 -7 -6 -5 -4 -4 -4 --------- Run | Yrd Mat Min Exi Min Mat Fac Fac Fac Fac Was Fac Total 5083 | 41 157 281 361 104 639 2463 496 57 140 82 262 Wait 403 | . 4 . . 5 128 197 5 . 16 . 48 Move 4135 | 36 119 268 334 82 421 2030 439 53 114 76 163 Hop . | . . . . . . . . . . . . Pick Up 21 | . 1 1 . . 3 13 1 . . . 2 Fast Attach 71 | 5 1 3 1 1 15 32 5 . 1 3 4 Attach 24 | . . . . 1 3 12 1 2 . . 5 Detach 3 | . . . . . . 1 1 . . 1 . Swap 20 | . . 1 . . 4 12 2 1 . . . Drop 42 | . 1 2 . . 5 25 5 1 . 2 1 Fire 82 | . 30 5 . . 17 30 . . . . . Melee 254 | . . . . 15 43 111 37 . 9 . 39 Ram . | . . . . . . . . . . . . Kick . | . . . . . . . . . . . . Crush 2 | . 1 1 . . . . . . . . . Escape Stasis . | . . . . . . . . . . . . Rewire 26 | . . . 26 . . . . . . . . Trap . | . . . . . . . . . . . . Miscellaneous . | . . . . . . . . . . . . Route ------- -11/Scrapyard -10/Materials -10/Mines -10/Exiles -9/Mines -8/Materials -7/Factory -6/Factory -5/Factory -4/Factory -4/Waste -4/Factory History --------- Turn | Location | Event 14 | -11/Scrapyard | Discovered new exit (range 15) 55 | -11/Scrapyard | Entered Materials 115 | -10/Materials | Discovered new exit (range 15) 309 | -10/Materials | Build established: Mutant 319 | -10/Materials | Entered Mines 403 | -10/Mines | Learned Materials emergency access door positions 652 | -10/Mines | Met a Derelict who couldn't figure out how to use a Trap Extractor 765 | -10/Mines | Deemed a non-threat by the Exiles lab entrance 766 | -10/Mines | Discovered new exit (range 5) 773 | -10/Mines | Entered Exiles 773 | -10/Exiles | Found Exiles lab destroyed 1321 | -10/Exiles | Discovered new exit (range 10) 1335 | -10/Exiles | Entered Mines 1335 | -9/Mines | Accompanied by 2 allies 1355 | -9/Mines | Learned location of 1 exit from Materials 1362 | -9/Mines | Met a Derelict bent on vengeance 1386 | -9/Mines | Assembled infested the area 1391 | -9/Mines | Assisted by a Guerilla fighting off Assembled 1442 | -9/Mines | Core integrity fell below 50% 1455 | -9/Mines | Lost 4 allies 1463 | -9/Mines | Core integrity fell below 20% 1473 | -9/Mines | Discovered new exit (range 11) 1495 | -9/Mines | Assisted by bots powering up and referring to "LRC-V3" 1515 | -9/Mines | Entered Materials 1515 | -8/Materials | Accompanied by 3 allies 1515 | -8/Materials | Evolved 4 slots: Utility x4 1516 | -8/Materials | Identified exit to Factory 1615 | -8/Materials | Lost 3 allies 1646 | -8/Materials | Lost 3 parts (2n1w) 1964 | -8/Materials | Repaired Hvy. Mace 1991 | -8/Materials | Repaired Lgt. Treads 2132 | -8/Materials | Repaired Lgt. Treads 2255 | -8/Materials | Core integrity fell below 50% 2489 | -8/Materials | Build established: Hacker-Mutant 2501 | -8/Materials | Entered Factory 2501 | -7/Factory | Evolved 2 slots: Utility x2 3207 | -7/Factory | Crushed by falling debris 3502 | -7/Factory | Build established: Mutant 3915 | -7/Factory | Lost 4 parts (1n1u2w) 4392 | -7/Factory | Crushed by falling debris 4392 | -7/Factory | System corruption reached 10% 5290 | -7/Factory | Core integrity fell below 50% 5701 | -7/Factory | First assault squad dispatched 5784 | -7/Factory | Core integrity fell below 20% 5862 | -7/Factory | Lost 7 parts (2p1n3u1w) 6440 | -7/Factory | Build established: Hacker-Mutant 6501 | -7/Factory | Discovered new exit (range 6) 6520 | -7/Factory | Entered another Factory area 6520 | -6/Factory | Evolved 2 slots: Utility x2 7700 | -6/Factory | Discovered new exit (range 5) 7712 | -6/Factory | Entered another Factory area 7712 | -5/Factory | Evolved 2 slots: Utility x2 7834 | -5/Factory | Discovered new exit (range 5) 7849 | -5/Factory | Entered another Factory area 7849 | -4/Factory | Evolved 2 slots: Utility x2 8163 | -4/Factory | Sucked down chute 8163 | -4/Factory | Entered Waste 8176 | -4/Waste | Spotted C-40 Crusher 8178 | -4/Waste | EMP discharged 8187 | -4/Waste | Crushed by Compactor (1 part destroyed, 1 dropped) 8208 | -4/Waste | Spotted C-40 Crusher 8209 | -4/Waste | Spotted C-40 Crusher 8212 | -4/Waste | Spotted C-40 Crusher 8217 | -4/Waste | Spotted C-40 Crusher 8220 | -4/Waste | Crushed by Compactor (1 part destroyed, 1 dropped) 8246 | -4/Waste | Spotted C-40 Crusher 8266 | -4/Waste | Discovered new exit (range 16) 8278 | -4/Waste | EMP discharged 8278 | -4/Waste | System corruption reached 10% 8288 | -4/Waste | Entered Factory 8404 | -4/Factory | System corruption reached 30% 8437 | -4/Factory | Lost 9 parts (7u2w) 8463 | -4/Factory | Core integrity fell below 50% 8526 | -4/Factory | Build established: Mutant 8541 | -4/Factory | Core integrity fell below 20% 8642 | -4/Factory | Destroyed by G-73 Enforcer with Phase Gun Last Messages --------------- R-10 Processor collects Corrupted Plasma Rifle. System corrupted: Component data lost. Penetrated by Slug. Slug penetrates Wall. ALERT: Hostiles spotted, dispatching reinforcements to Terminal F009. System corrupted: Heat flow error (+193). Acquired Adv. Actuator Array. System corrupted: Component data lost. System corrupted: Matter fused (-7). Y-64 Sentinel suffers critical hit (Smash). Destroyed Wave Gun. Y-64 Sentinel system corrupted by crushing effect. Y-64 Sentinel system terminally corrupted. Adv. Heat Sink fried. Neutrino Core fried. Acquired 27 matter. System corrupted: Component data lost. G-67 Veteran knocked back. G-73 Enforcer knocked back. System corrupted: Great Maul rejected. Map ----- +----------------------------------------------------+ | ??????????????????????????????# """"""""" # | | ??????????????????????????????#" """"""""" # | | ??????????????????????????????#" """"""""" + | | ??????????????????????????????#" # | | ??????????????????????????????#T ! # | | ??????????????????????????????#" ! # | | ??????????????????????????????#" ## | | ??????????????????????????????#" #? | | ??????????????????????????????# #? | | ??????????????????????????????########+###### | | ????????????????????????????????????# | | ????????????????????????????????????# | | ????????????????????????????????????# | | ????????????????????????????????????# ##### | | ????????????????????????????????????# #???? | | ???????????????????????????########## #???? | | ???????????????????????????# # #???? | | ??????????????#????######### """" " #???? | | ??????????????# ???# # """" # #???? | | ??????????????# ???# # """" # #???? | | ??????????????# ??# # """" + #???? | | ?????????????## ?# """"" # """" # #???? | | ?????????????# # """"" # """" # #???? | | ????????????## # """ # """" # #???? | | ????? g!%= ; # #???? | | ????????????## #@""""" ########## #???? | | ?????????????# ??# """"" #????????# #???? | | ?????????????##????# """ #????????# #???? | | ???????????????????# #???????? ???? | | ???????????????????#########???????? ???? | | ???????????????????????????????????? ???? | | ???????????????????????????????????? ???? | | ????????????????????????????????????? ????? | | ????????????????????????????????????????????? | | ????????????????????????????????????????????? | | ????????????????????????????????????????????? | | ????????????????????????????????????????????? | | ????????????????????????????????????????????? | | ????????????????????????????????????????????? | | ????????????????????????????????????????????? | | ????????????????????????????????????????????? | | ????????????????????????????????????????????? | | ????????????????????????????????????????????? | | ????????????????????????????????????????????? | | ????????????????????????????????????????????? | | ????????????????????????????????????????????? | | ????????????????????????????????????????????? | | ????????????????????????????????????????????? | | ????????????????????????????????????????????? | | ????????????????????????????????????????????? | +----------------------------------------------------+ Best States ------------- Heat Dissipation 43 Energy Generation 19 Energy Capacity 315 Matter Stores 300 Matter Capacity 300 Sight Range 16 Terrain Scan Density 10 Armor Coverage 1200 Melee Speed Boost 40 Evasion (%) 50 Melee Accuracy 26 Recoil Reduction 2 Force Boost 20 Offensive Hacking 11 Defensive Hacking 10 Item Schematics ----------------- None Robot Schematics ------------------ None Fabricated ------------ Nothing Alien Tech Used ----------------- None Achievements -------------- None Challenges ------------ None Game ------ Seed MicrowarpCommInterrupter Manual? 0 Play Time 00:53:18 Cumulative 60.1 hours Start 2024.07.30 @ 15:55:56 End 2024.07.30 @ 16:49:12 Sessions 1 Manual Loads 0 Difficulty Rogue Special Mode None Game No. 137 Rogue 62 Adventurer 75 Explorer 0 Win Type - Total 0 Types 0/0/0/0/0/0/0/0/0 Lore% 37 Gallery% 42 Achievement% 33 Wizard Run 0 Options --------- Layout 0 ASCII 0 Keyboard 0 Movement Mouse Keybinds 0 Fullscreen 1 Font 24/Smallcaps Map View 76x50 Zoom Use 0% Tactical HUD 0 Map Filters NONE Filters NONE Steam 1 RUN: 836fe732-2ca2-408a-8f7f-8f1986d765c2